bitfinex/quotes_SOLUSD_20250728
["timestamp","ask_amount","ask_price","bid_price","bid_amount"]
[1753738402776,8.86657136,184.78,184.75,38.6]
[1753738402961,8.14657136,184.78,184.75,38.6]
[1753738403163,8.14657136,184.79,184.75,38.6]
[1753738403366,8.14657136,184.79,184.76,16.78468397]
[1753738403574,8.86657136,184.8,184.76,16.78468397]
[1753738403762,12.17426817,184.79,184.76,16.78468397]
[1753738403967,8.14657136,184.79,184.76,16.78468397]
[1753738405479,8.14657136,184.77,184.76,38.62]
[1753738405997,8.86657136,184.77,184.74,38.62]
[1753738406151,8.14657136,184.75,184.74,38.62]
[1753738406352,8.86657136,184.75,184.74,38.62]
[1753738406673,8.86657136,184.75,184.68,0.06]
[1753738406878,8.14657136,184.69,184.68,38.7]
[1753738409991,8.86657136,184.69,184.68,38.7]
[1753738411811,14.28104967,184.69,184.68,0.06]
[1753738411970,8.86657136,184.69,184.68,0.06]
[1753738412703,8.14657136,184.69,184.68,0.06]
[1753738413096,6.13395139,184.71,184.68,0.06]
[1753738413097,0.72,184.71,184.68,0.06]
[1753738413392,8.14657136,184.69,184.68,0.06]
[1753738414409,8.14657136,184.72,184.68,39.38]
[1753738415772,0.03,184.73,184.72,0.28432314]
[1753738415979,0.03,184.73,184.72,64.35693836]
[1753738416184,0.03,184.73,184.72,65.07693836]
[1753738416364,8.14657136,184.82,184.76,16.78468397]
[1753738416568,8.14657136,184.84,184.79,8.14657136]
[1753738416769,8.86657136,184.84,184.8,38.7]
[1753738416992,0.72,184.84,184.8,38.7]
[1753738417175,8.14657136,184.87,184.81,0.72]
[1753738417375,1.6512,184.88,184.72,17.78900711]
[1753738417376,8.14657136,184.82,184.72,17.78900711]
[1753738417693,8.14657136,184.77,184.74,38.92]
[1753738418267,8.14657136,184.78,184.74,38.92]
[1753738418511,8.14657136,184.76,184.74,38.92]
[1753738420417,8.14657136,184.75,184.74,55.70468397]
[1753738420586,8.14657136,184.75,184.74,38.92]
[1753738420775,8.86657136,184.75,184.74,38.92]
[1753738423393,8.14657136,184.75,184.74,38.92]
[1753738425002,8.86657136,184.75,184.74,38.92]
[1753738425304,14.27929125,184.75,184.69,26.0]
[1753738425482,8.14657136,184.7,184.69,26.0]
[1753738425684,8.14657136,184.7,184.69,38.84]
[1753738429681,8.85657136,184.7,184.69,38.84]
[1753738429901,8.85657136,184.7,184.68,0.06]
[1753738430106,8.85657136,184.69,184.68,38.88]
[1753738435003,22.41762103,184.69,184.68,0.06]
[1753738435329,30.10676882,184.69,184.68,0.06]
[1753738435627,21.96019746,184.69,184.68,0.06]
[1753738435815,18.31880468,184.69,184.68,0.06]
[1753738436807,12.90432637,184.69,184.68,0.06]
[1753738437011,0.71,184.71,184.68,0.06]
[1753738437223,8.14657136,184.69,184.68,0.06]
[1753738437428,8.14657136,184.71,184.68,0.06]
[1753738437926,8.14657136,184.7,184.68,0.06]
[1753738438112,0.03,184.73,184.69,38.76]
[1753738438424,0.03,184.73,184.69,39.46]
[1753738438627,8.17657136,184.73,184.69,39.46]
[1753738439707,0.03,184.73,184.69,47.60657136]
[1753738440029,0.03,184.73,184.72,16.78468397]
[1753738440521,0.03,184.73,184.71,8.14657136]
[1753738440721,0.03,184.73,184.71,16.78468397]
[1753738441227,0.03,184.73,184.71,17.48468397]
[1753738441439,0.03,184.73,184.72,38.8]
[1753738442643,8.88657136,184.73,184.68,0.06]
[1753738442841,8.14657136,184.7,184.68,0.06]
[1753738443009,8.14657136,184.72,184.69,38.78]
[1753738444356,8.85657136,184.72,184.69,38.78]
[1753738445256,8.14657136,184.7,184.69,38.78]
[1753738445633,8.85657136,184.7,184.69,38.78]
[1753738445957,0.71,184.7,184.69,38.78]
[1753738446164,8.14657136,184.7,184.69,38.78]
[1753738446447,8.85657136,184.7,184.68,0.06]
[1753738446751,8.85657136,184.69,184.68,0.06]
[1753738447055,17.00314272,184.69,184.64,0.06]
[1753738447350,8.14657136,184.66,184.64,0.06]
[1753738448436,8.14657136,184.67,184.64,0.76]
[1753738448751,8.14657136,184.68,184.65,38.8]
[1753738449261,8.14657136,184.69,184.65,38.8]
[1753738449424,8.85657136,184.69,184.65,38.8]
[1753738449622,8.14657136,184.7,184.65,38.8]
[1753738449832,8.14657136,184.71,184.66,25.63125533]
[1753738450627,8.85657136,184.71,184.66,25.63125533]
[1753738451529,8.85657136,184.71,184.66,31.04652975]
[1753738451728,0.71,184.71,184.66,31.04652975]
[1753738452654,8.14657136,184.72,184.67,8.14657136]
[1753738452830,0.71,184.72,184.68,38.76]
[1753738453531,0.03,184.73,184.68,47.60657136]
[1753738453741,0.03,184.73,184.72,24.93125533]
[1753738453948,0.03,184.73,184.72,63.69125533]
[1753738454255,0.03,184.73,184.72,64.39125533]
[1753738454629,0.03,184.73,184.72,69.80485429]
[1753738454853,0.03,184.73,184.72,64.39125533]
[1753738455255,0.03,184.73,184.72,70.08917743]
[1753738456536,0.03,184.73,184.72,76.69077743]
[1753738458174,0.03,184.73,184.72,70.57717847]
[1753738458472,0.03,184.73,184.72,55.54468397]
[1753738461550,0.03,184.73,184.72,70.62053732]
[1753738461750,0.03,184.77,184.76,43.06900711]
[1753738462084,0.03,184.77,184.76,97.95687847]
[1753738462233,0.68,184.88,184.8,33.36214983]
[1753738462557,0.68,184.88,184.8,78.11453078]
[1753738462734,0.68,184.88,184.8,78.80453078]
[1753738463242,3.63368828,184.89,184.8,78.80453078]
[1753738463437,0.68,184.9,184.8,78.80453078]
[1753738463640,6.0883388,184.9,184.8,78.80453078]
[1753738464455,8.14657136,184.91,184.8,78.80453078]
[1753738464666,0.68,184.86,184.8,64.55670401]
[1753738465072,0.68,184.86,184.8,69.96795942]
[1753738465241,0.68,184.86,184.8,70.65795942]
[1753738466049,0.68,184.86,184.8,78.80453078]
[1753738466568,0.68,184.87,184.8,78.80453078]
[1753738467264,0.68,184.87,184.8,70.65795942]
[1753738469165,0.68,184.87,184.8,78.80453078]
[1753738469651,0.68,184.85,184.8,90.55670401]
[1753738469855,0.68,184.85,184.8,95.96795942]
[1753738470366,0.68,184.87,184.8,78.80453078]
[1753738471566,0.68,184.86,184.8,70.65795942]
[1753738472154,0.03,184.89,184.8,78.80453078]
[1753738472345,0.68,184.88,184.8,78.80453078]
[1753738473967,0.68,184.88,184.8,167.60453078]
[1753738474261,0.03,184.89,184.83,42.78468397]
[1753738474566,0.03,184.89,184.83,90.17229304]
[1753738474866,0.71,184.89,184.83,90.17229304]
[1753738475259,0.71,184.89,184.83,95.58267014]
[1753738476259,0.71,184.89,184.83,96.27267014]
[1753738476655,0.71,184.89,184.83,96.55699328]
[1753738477569,0.68,184.87,184.83,95.86699328]
[1753738479438,0.68,184.87,184.83,57.16699328]
[1753738479658,0.68,184.87,184.83,95.82699328]
[1753738482348,0.71,184.84,184.83,90.41661618]
[1753738482764,0.71,184.84,184.83,89.87557847]
[1753738483141,0.03,184.84,184.83,95.28595557]
[1753738483348,0.03,184.84,184.83,89.87557847]
[1753738483556,0.71,184.84,184.83,89.87557847]
[1753738484374,0.03,184.84,184.83,95.28595557]
[1753738485376,0.71,184.84,184.83,89.87557847]
[1753738487052,0.03,184.84,184.83,95.28595557]
[1753738487377,0.03,184.84,184.83,95.82699328]
[1753738489176,0.03,184.84,184.83,96.49699328]
[1753738489365,0.03,184.84,184.83,95.82699328]
[1753738496860,0.03,184.84,184.83,92.66324319]
[1753738497784,0.03,184.84,184.83,93.33324319]
[1753738497983,0.03,184.84,184.83,92.79220548]
[1753738500697,0.71,184.84,184.83,16.78468397]
[1753738500859,0.71,184.84,184.83,65.63788234]
[1753738501058,0.03,184.84,184.83,65.63788234]
[1753738501363,0.03,184.84,184.83,66.46324319]
[1753738503089,0.03,184.88,184.83,168.91326446]
[1753738503298,0.03,184.88,184.87,48.05182838]
[1753738503592,0.03,184.88,184.87,87.09274902]
[1753738503766,0.03,184.88,184.87,93.17195548]
[1753738504186,0.03,184.88,184.87,92.50195548]
[1753738505198,0.03,184.88,184.87,92.48195548]
[1753738506899,0.03,184.88,184.87,93.15195548]
[1753738509315,0.03,184.89,184.88,21.76750524]
[1753738510289,0.03,184.89,184.88,22.43750524]
[1753738510602,0.03,184.89,184.88,27.17641913]
[1753738510803,1.5353,184.98,184.88,27.17641913]
[1753738510804,0.68,184.95,184.94,42.78468397]
[1753738510996,0.68,184.95,184.94,86.20750524]
[1753738512083,0.68,184.95,184.94,91.61466431]
[1753738513588,0.03,184.96,184.95,17.06900711]
[1753738513791,0.03,184.96,184.95,27.57533632]
[1753738514109,0.03,184.96,184.95,32.98220304]
[1753738516413,0.74,184.96,184.95,66.17505863]
[1753738516589,0.03,184.96,184.95,71.1578799]
[1753738519308,0.03,184.96,184.95,71.8778799]
[1753738521093,0.71,185.02,184.99,16.78468397]
[1753738521297,5.40309574,185.08,185.01,47.76750524]
[1753738521592,5.40309574,185.08,185.02,38.44]
[1753738521795,0.71,185.07,185.03,21.76750524]
[1753738521997,0.71,185.07,185.04,38.44]
[1753738523013,0.71,185.07,185.04,43.42282127]
[1753738524324,0.71,185.07,185.05,38.42]
[1753738524518,0.71,185.07,185.06,38.42]
[1753738524717,5.69282127,185.07,185.06,38.4]
[1753738524901,5.69282127,185.07,185.02,26.0]
[1753738524902,11.09618216,185.07,185.04,38.4]
[1753738525104,4.98282127,185.05,185.04,38.4]
[1753738525322,5.69282127,185.05,185.04,38.4]
[1753738525930,0.71,185.05,185.04,38.4]
[1753738528336,5.40219329,185.11,185.04,43.38282127]
[1753738528509,0.71,185.07,185.04,43.38282127]
[1753738529010,0.71,185.06,185.04,43.38282127]
[1753738529206,0.71,185.05,185.04,38.4]
[1753738536012,0.71,185.05,185.04,64.4]
[1753738536523,0.71,185.05,185.04,64.38]
[1753738537818,155.60236381,185.15,185.04,64.38]
[1753738538022,0.71,185.08,185.07,30.98282127]
[1753738538230,0.71,185.08,185.07,69.36282127]
[1753738538610,0.71,185.1,185.07,69.36282127]
[1753738538811,0.71,185.09,185.08,4.98282127]
[1753738539032,0.71,185.09,185.07,69.36282127]
[1753738540814,156.11047025,185.15,185.08,5.70282127]
[1753738541147,0.71,185.14,185.09,43.34282127]
[1753738541314,0.71,185.13,185.09,43.34282127]
[1753738541657,7.11047025,185.15,185.12,26.0]
[1753738541942,1.7092,185.15,185.12,26.0]
[1753738542140,0.71,185.14,185.11,30.98282127]
[1753738542458,0.71,185.13,185.12,38.34]
[1753738542952,0.81,185.15,185.14,26.0]
[1753738543339,0.81,185.15,185.14,38.38]
[1753738543647,0.1,185.15,185.14,38.38]
[1753738543953,0.81,185.15,185.09,4.98282127]
[1753738544142,4.98282127,185.14,185.1,64.36]
[1753738544448,0.71,185.13,185.1,64.36]
[1753738544650,0.71,185.12,185.1,64.36]
[1753738553646,0.71,185.12,185.1,69.34282127]
[1753738553848,5.50109431,185.15,185.1,69.34282127]
[1753738554034,0.69,185.14,185.1,69.34282127]
[1753738554240,0.69,185.13,185.1,69.34282127]
[1753738557456,0.69,185.13,185.1,26.0]
[1753738557654,0.69,185.13,185.1,64.28]
[1753738559433,5.40138886,185.14,185.12,26.0]
[1753738559632,4.98282127,185.13,185.08,55.06468397]
[1753738559946,4.98282127,185.12,185.11,26.0]
[1753738560155,5.67282127,185.12,185.11,26.0]
[1753738560356,7.33692127,185.12,185.04,38.28]
[1753738560560,4.98282127,185.08,185.06,26.0]
[1753738560764,0.69,185.07,185.03,16.78468397]
[1753738560945,0.69,185.07,185.06,26.0]
[1753738561460,0.69,185.07,185.03,55.06468397]
[1753738561633,5.67282127,185.07,185.02,55.06468397]
[1753738561836,0.69,185.06,185.05,26.0]
[1753738562472,0.69,185.09,185.06,26.0]
[1753738562651,5.67282127,185.09,185.06,26.0]
[1753738562856,0.69,185.09,185.07,26.0]
[1753738563239,4.98282127,185.11,185.07,26.0]
[1753738563451,5.67282127,185.11,185.07,26.0]
[1753738563670,4.98282127,185.11,185.07,26.0]
[1753738563840,5.67282127,185.11,185.07,26.0]
[1753738564038,5.67282127,185.11,185.07,26.71]
[1753738564253,5.67282127,185.11,185.07,26.0]
[1753738564660,4.98282127,185.1,185.07,26.0]
[1753738564867,5.67282127,185.11,185.07,26.0]
[1753738565569,0.69,185.13,185.09,26.0]
[1753738565748,43.26282127,185.14,185.11,26.0]
[1753738565952,5.08282127,185.15,185.11,26.0]
[1753738566258,0.03,185.12,185.11,26.71]
[1753738566464,0.03,185.12,185.11,26.0]
[1753738567745,0.03,185.12,185.11,0.71]
[1753738567951,0.03,185.12,185.11,81.77468397]
[1753738568157,0.03,185.12,185.11,55.77468397]
[1753738568767,0.03,185.12,185.11,66.15969853]
[1753738568956,0.03,185.12,185.11,66.44402167]
[1753738570354,0.03,185.12,185.11,68.06162167]
[1753738577757,0.03,185.12,185.11,68.60184099]
[1753738578966,0.03,185.12,185.11,73.58466226]
[1753738580083,0.03,185.12,185.11,162.38466226]
[1753738580293,0.03,185.12,185.11,161.84444294]
[1753738584970,0.03,185.12,185.11,166.28071495]
[1753738585169,0.03,185.12,185.11,161.84444294]
[1753738586991,0.71,185.17,185.15,42.78468397]
[1753738587166,0.71,185.17,185.16,44.06721785]
[1753738587975,1.554,185.23,185.21,26.0]
[1753738588178,1.554,185.23,185.21,64.26]
[1753738588372,0.71,185.22,185.21,64.26]
[1753738589295,0.71,185.22,185.21,81.04468397]
[1753738589468,0.71,185.22,185.21,86.02750524]
[1753738592102,0.71,185.22,185.21,81.04468397]
[1753738593394,5.69282127,185.22,185.19,26.0]
[1753738593690,0.71,185.21,185.2,38.26]
[1753738595182,0.71,185.21,185.19,38.26]
[1753738598102,0.71,185.2,185.19,38.26]
[1753738599301,6.5389,185.26,185.19,38.26]
[1753738599481,0.71,185.23,185.2,16.78468397]
[1753738599675,0.71,185.23,185.21,38.26]
[1753738608511,0.72,185.25,185.21,38.26]
[1753738608723,4.98282127,185.26,185.21,38.26]
[1753738609018,0.72,185.24,185.21,38.26]
[1753738609716,0.03,185.23,185.21,38.26]
[1753738610517,0.75,185.23,185.21,38.26]
[1753738614927,0.03,185.23,185.21,38.26]
[1753738615122,0.03,185.23,185.22,16.78468397]
[1753738616119,0.03,185.23,185.22,17.50468397]
[1753738617099,0.03,185.23,185.22,16.78468397]
[1753738618822,0.03,185.23,185.22,17.50468397]
[1753738619223,0.75,185.23,185.22,16.78468397]
[1753738619423,0.03,185.23,185.22,16.78468397]
[1753738622232,0.03,185.23,185.22,17.50468397]
[1753738622430,0.03,185.23,185.22,16.78468397]
[1753738624509,0.03,185.23,185.22,27.88649023]
[1753738624713,0.03,185.23,185.22,28.17081337]
[1753738627212,0.03,185.23,185.22,22.4679921]
[1753738627416,0.03,185.23,185.22,60.6879921]
[1753738628222,0.03,185.23,185.22,66.39081337]
[1753738628419,0.03,185.23,185.22,65.67081337]
[1753738628637,0.03,185.23,185.22,81.00468397]
[1753738628814,0.75,185.23,185.22,81.00468397]
[1753738630512,0.03,185.23,185.22,81.00468397]
[1753738631709,0.03,185.23,185.22,85.98750524]
[1753738633120,0.03,185.23,185.22,91.5286518]
[1753738633325,0.03,185.23,185.22,92.39081337]
[1753738634960,0.03,185.23,185.22,104.35583313]
[1753738635259,0.03,185.23,185.22,103.81593464]
[1753738635830,0.03,185.23,185.22,98.83311337]
[1753738636144,0.03,185.23,185.22,99.37301186]
[1753738636339,0.03,185.23,185.22,104.35583313]
[1753738636544,0.03,185.23,185.22,103.81593464]
[1753738639025,0.03,185.23,185.22,103.617564]
[1753738639652,0.03,185.23,185.22,60.41474273]
[1753738639827,0.03,185.23,185.22,98.61474273]
[1753738640723,0.03,185.23,185.22,97.89474273]
[1753738641353,0.03,185.23,185.22,91.45244273]
[1753738642953,0.73,185.23,185.12,0.78]
[1753738643136,4.98282127,185.2,185.13,49.30443094]
[1753738643332,4.98282127,185.17,185.13,38.2]
[1753738643545,0.65,185.19,185.13,38.2]
[1753738643546,0.65,185.16,185.13,38.2]
[1753738643860,5.63282127,185.16,185.13,38.2]
[1753738644150,4.98282127,185.14,185.12,0.06]
[1753738644349,5.63282127,185.13,185.12,38.26]
[1753738644550,5.63282127,185.13,185.12,0.06]
[1753738646559,5.63282127,185.13,185.08,0.06]
[1753738646560,27.75848443,185.13,185.08,0.06]
[1753738646755,4.98282127,185.09,185.08,0.06]
[1753738647257,5.63282127,185.09,185.08,0.06]
[1753738649355,5.63282127,185.11,185.08,0.06]
[1753738649840,0.65,185.11,185.08,0.06]
[1753738650040,1.6005,185.13,185.08,0.78]
[1753738650259,4.98282127,185.12,185.08,0.78]
[1753738650567,4.98282127,185.1,185.08,0.06]
[1753738651630,0.65,185.09,185.08,0.06]
[1753738651947,5.63282127,185.09,185.08,26.06]
[1753738656261,6.58332127,185.13,185.08,26.06]
[1753738656262,0.65,185.11,185.08,26.06]
[1753738656450,4.98282127,185.09,185.08,26.06]
[1753738657468,4.98282127,185.09,185.08,0.06]
[1753738660073,6.05221884,185.11,185.08,0.06]
[1753738660364,4.98282127,185.09,185.08,0.06]
[1753738660962,0.65,185.1,185.08,0.06]
[1753738661168,4.98282127,185.09,185.08,0.06]
[1753738661950,5.63282127,185.09,185.08,0.06]
[1753738662165,11.03559829,185.09,185.08,0.06]
[1753738662461,5.40190146,185.12,185.08,0.06]
[1753738662674,4.98282127,185.09,185.08,0.06]
[1753738663273,4.98282127,185.1,185.08,26.06]
[1753738665274,4.98282127,185.09,185.08,26.06]
[1753738665479,1.6005,185.13,185.08,0.78]
[1753738665776,1.6005,185.13,185.08,32.18305039]
[1753738665952,6.58332127,185.13,185.09,0.72]
[1753738666154,4.98282127,185.12,185.09,0.72]
[1753738666351,4.98282127,185.12,185.1,0.7]
[1753738667157,4.98282127,185.12,185.11,0.7]
[1753738667474,4.98282127,185.13,185.11,0.7]
[1753738667951,4.98282127,185.12,185.11,0.7]
[1753738668152,4.98282127,185.12,185.09,0.7]
[1753738668369,4.98282127,185.12,185.1,0.7]
[1753738669155,4.98282127,185.13,185.11,0.7]
[1753738669343,4.98282127,185.13,185.09,16.78468397]
[1753738669549,4.98282127,185.13,185.12,0.7]
[1753738669749,4.98282127,185.14,185.09,16.78468397]
[1753738669974,4.98282127,185.14,185.1,0.7]
[1753738670180,0.65,185.16,185.11,0.7]
[1753738670478,4.98282127,185.14,185.11,0.7]
[1753738670876,4.98282127,185.12,185.08,26.76]
[1753738671183,4.98282127,185.11,185.1,26.0]
[1753738671477,4.98282127,185.14,185.1,26.7]
[1753738671647,4.98282127,185.14,185.1,26.0]
[1753738671850,4.98282127,185.14,185.11,0.7]
[1753738672454,4.98282127,185.13,185.11,0.7]
[1753738672658,4.98282127,185.14,185.11,0.7]
[1753738674260,4.98282127,185.13,185.11,0.7]
[1753738674666,4.98282127,185.14,185.11,0.7]
[1753738675265,4.98282127,185.15,185.11,0.7]
[1753738675470,7.9998981,185.14,185.11,0.7]
[1753738675674,4.98282127,185.15,185.11,0.7]
[1753738675880,3.99994961,185.14,185.1,31.40246326]
[1753738676075,3.99994961,185.14,185.11,0.7]
[1753738677778,3.99994961,185.14,185.1,36.38508792]
[1753738677779,4.98282127,185.14,185.1,26.0]
[1753738677981,4.98282127,185.14,185.11,0.7]
[1753738678792,0.65,185.13,185.1,26.0]
[1753738679083,4.98282127,185.14,185.1,26.0]
[1753738679470,4.98282127,185.14,185.1,26.76]
[1753738679856,5.01282127,185.14,185.1,26.76]
[1753738680293,5.01282127,185.14,185.1,26.06]
[1753738680497,5.66282127,185.14,185.1,26.06]
[1753738680887,5.66282127,185.14,185.1,26.76]
[1753738681387,8.0178072,185.13,185.1,26.76]
[1753738681580,5.01282127,185.14,185.1,26.76]
[1753738681759,8.01893494,185.13,185.1,26.76]
[1753738681962,0.03,185.14,185.1,26.76]
[1753738682185,8.04893382,185.14,185.1,26.76]
[1753738682383,8.01893382,185.13,185.11,0.7]
[1753738682694,0.03,185.14,185.11,0.7]
[1753738682870,8.02558609,185.13,185.11,0.7]
[1753738683069,0.03,185.14,185.12,0.7]
[1753738683290,8.02558553,185.13,185.12,0.7]
[1753738685781,8.02558553,185.13,185.12,17.48468397]
[1753738685970,8.02558553,185.13,185.12,43.48468397]
[1753738686782,8.02558553,185.13,185.12,66.1694067]
[1753738687802,8.02558553,185.13,185.12,66.45372984]
[1753738688174,0.03,185.14,185.13,16.78468397]
[1753738688405,0.03,185.14,185.13,23.29198934]
[1753738688599,0.03,185.14,185.13,28.27481061]
[1753738689966,0.03,185.14,185.13,33.67642028]
[1753738694614,0.03,185.14,185.13,28.69359901]
[1753738701327,0.03,185.14,185.13,33.67642028]
[1753738702111,0.03,185.14,185.13,28.69359901]
[1753738703526,0.03,185.14,185.13,16.78468397]
[1753738703723,0.03,185.14,185.13,55.02468397]
[1753738703928,0.68,185.14,185.13,55.02468397]
[1753738705918,0.68,185.14,185.12,38.24]
[1753738706226,6.08131792,185.14,185.13,26.0]
[1753738706524,11.06413919,185.14,185.1,0.06]
[1753738706697,4.98282127,185.11,185.1,0.06]
[1753738707023,4.98282127,185.11,185.1,26.06]
[1753738707337,11.03501456,185.11,185.1,0.06]
[1753738712012,1.5153,185.1,185.08,0.06]
[1753738712217,7.14812127,185.1,185.08,0.06]
[1753738712520,5.63282127,185.09,185.08,0.06]
[1753738713123,11.03559829,185.09,185.08,0.06]
[1753738715950,6.91781339,185.1,185.08,0.06]
[1753738716105,11.90063466,185.1,185.08,0.06]
[1753738716301,12.55063466,185.1,185.08,0.06]
[1753738721414,7.56781339,185.1,185.08,0.06]
[1753738721615,4.98282127,185.09,185.08,0.06]
[1753738724442,11.90063466,185.1,185.08,0.06]
[1753738724622,0.03,185.11,185.08,26.74]
[1753738724821,0.03,185.11,185.09,43.46468397]
[1753738725227,0.03,185.11,185.1,0.68]
[1753738725534,0.03,185.11,185.1,17.46468397]
[1753738729322,0.03,185.11,185.1,28.67456203]
[1753738731734,0.03,185.11,185.1,28.13431352]
[1753738734138,0.03,185.11,185.1,17.46468397]
[1753738735448,0.03,185.11,185.1,22.44750524]
[1753738736322,0.68,185.11,185.08,0.06]
[1753738736522,5.66282127,185.11,185.08,0.06]
[1753738736748,0.65,185.1,185.08,0.06]
[1753738737132,0.65,185.1,185.09,26.0]
[1753738739261,5.63282127,185.1,185.09,26.0]
[1753738741557,11.03530641,185.1,185.08,0.06]
[1753738741858,5.63282127,185.09,185.08,0.06]
[1753738742637,10.38530641,185.1,185.08,0.06]
[1753738742839,10.38530641,185.1,185.08,0.73]
[1753738743240,10.38530641,185.1,185.08,0.06]
[1753738745558,5.63282127,185.09,185.08,0.06]
[1753738745741,13.29597171,185.09,185.08,0.06]
[1753738745940,17.32947207,185.09,185.08,0.06]
[1753738746456,55.56947207,185.09,185.08,0.06]
[1753738747175,55.56947207,185.09,185.06,0.06]
[1753738747176,61.79247207,185.09,185.06,0.06]
[1753738747459,4.98282127,185.07,185.06,0.06]
[1753738747636,16.67947207,185.07,185.06,0.06]
[1753738747839,17.32947207,185.07,185.06,0.06]
[1753738748535,21.59555693,185.07,185.06,0.06]
[1753738748731,17.32947207,185.07,185.06,0.06]
[1753738748956,16.67947207,185.07,185.06,0.06]
[1753738749161,12.64634966,185.07,185.06,0.06]
[1753738749343,22.08744119,185.07,185.06,0.06]
[1753738749959,8.071231,185.07,185.06,17.51468397]
[1753738750167,0.03,185.11,185.06,22.78182838]
[1753738750379,0.03,185.11,185.08,0.28432314]
[1753738750546,0.03,185.11,185.09,17.45468397]
[1753738750747,0.03,185.11,185.09,16.78468397]
[1753738750950,0.03,185.11,185.1,17.45468397]
[1753738753942,0.03,185.11,185.1,35.24936203]
[1753738757760,0.03,185.11,185.1,40.2321833]
[1753738757944,0.03,185.11,185.1,73.46936203]
[1753738758657,0.03,185.11,185.1,78.4521833]
[1753738759065,0.03,185.14,185.13,42.78468397]
[1753738759373,0.03,185.14,185.13,91.79481061]
[1753738759572,0.03,185.14,185.13,92.47481061]
[1753738759870,0.03,185.14,185.13,97.87642028]
[1753738760861,0.03,185.14,185.13,92.89359901]
[1753738762573,0.03,185.14,185.13,87.49198934]
[1753738763897,0.03,185.14,185.13,92.89359901]
[1753738764572,0.03,185.14,185.13,87.49198934]
[1753738766064,0.03,185.14,185.13,92.89359901]
[1753738771058,0.03,185.14,185.13,97.87642028]
[1753738773803,0.03,185.15,185.14,17.06900711]
[1753738774004,0.03,185.18,185.17,43.06900711]
[1753738774297,0.03,185.18,185.17,86.79187266]
[1753738774589,0.03,185.18,185.17,87.47187266]
[1753738775458,0.03,185.18,185.17,93.61607266]
[1753738776091,0.03,185.19,185.18,17.06900711]
[1753738776264,0.03,185.2,185.19,4.98282127]
[1753738776462,0.03,185.2,185.19,61.47181434]
[1753738777562,0.65,185.28,185.23,42.78468397]
[1753738777876,0.65,185.28,185.27,26.0]
[1753738778076,0.65,185.28,185.27,80.98468397]
[1753738778590,0.65,185.3,185.28,16.78468397]
[1753738778885,1.5649,185.31,185.29,38.2]
[1753738779404,0.65,185.3,185.29,38.2]
[1753738780766,5.39584873,185.33,185.29,38.2]
[1753738780967,4.98282127,185.31,185.29,26.0]
[1753738781176,4.98282127,185.31,185.3,38.2]
[1753738781467,4.98282127,185.31,185.29,64.2]
[1753738781764,0.65,185.36,185.33,26.0]
[1753738781980,6.2957,185.39,185.37,26.0]
[1753738781981,4.98282127,185.38,185.37,26.0]
[1753738782187,4.00412975,185.38,185.37,26.0]
[1753738782367,11.27852127,185.39,185.37,26.0]
[1753738782569,0.65,185.38,185.37,26.0]
[1753738784281,0.65,185.38,185.36,26.0]
[1753738785481,0.65,185.37,185.36,26.0]
[1753738788494,14.02613547,185.37,185.34,26.0]
[1753738788671,4.64075965,185.36,185.34,26.0]
[1753738788876,5.39461617,185.37,185.34,26.0]